fUSD/lending_fUSD_20251220
["ID","MTS","AMOUNT","RATE_DAILY","PERIOD"]
[399229176,1766189441413,-500.0,0.00013698,2]
[399229178,1766189441422,-500.0,0.00013698,2]
[399229180,1766189441432,-500.0,0.00013698,2]
[399229182,1766189441442,-500.0,0.00013698,2]
[399229184,1766189441451,-500.0,0.00013698,2]
[399229186,1766189441460,-500.0,0.00013698,2]
[399229188,1766189441469,-500.0,0.00013698,2]
[399229190,1766189441478,-500.0,0.00013698,2]
[399229192,1766189441488,-500.0,0.00013698,2]
[399229194,1766189441497,-500.0,0.00013698,2]
[399229196,1766189441506,-500.0,0.00013698,2]
[399229198,1766189441515,-500.0,0.00013698,2]
[399229200,1766189441525,-500.0,0.00013698,2]
[399229202,1766189441534,-500.0,0.00013698,2]
[399229204,1766189441543,-500.0,0.00013698,2]
[399229206,1766189441552,-500.0,0.00013698,2]
[399229208,1766189441561,-500.0,0.00013698,2]
[399229210,1766189441571,-500.0,0.00013698,2]
[399229212,1766189441580,-500.0,0.00013698,2]
[399229214,1766189441589,-500.0,0.00013698,2]
[399229216,1766189441598,-500.0,0.00013698,2]
[399229218,1766189441607,-500.0,0.00013698,2]
[399229220,1766189441616,-500.0,0.00013698,2]
[399229222,1766189441626,-500.0,0.00013698,2]
[399229224,1766189441635,-500.0,0.00013698,2]
[399229226,1766189441644,-500.0,0.00013698,2]
[399229229,1766189441653,-500.0,0.00013698,2]
[399229231,1766189441663,-508.81773728,0.00013698,2]
[399229232,1766189441672,-500.0,0.00013698,2]
[399229234,1766189441681,-500.0,0.00013698,2]
[399229237,1766189441691,-500.0,0.00013698,2]
[399229239,1766189441701,-332.08852562,0.00013698,2]
[399229241,1766189441711,-500.0,0.00013698,2]
[399229243,1766189441722,-500.0,0.00013698,2]
[399229245,1766189441732,-506.74044267,0.00013698,2]
[399229247,1766189441741,-500.0,0.00013698,2]
[399229249,1766189441750,-500.0,0.00013698,2]
[399229251,1766189441762,-500.0,0.00013698,2]
[399229253,1766189441771,-500.0,0.00013698,2]
[399229255,1766189441780,-500.0,0.00013698,2]
[399229257,1766189441790,-500.0,0.00013698,2]
[399229259,1766189441800,-500.0,0.00013698,2]
[399229261,1766189441810,-500.0,0.00013698,2]
[399229263,1766189441820,-500.0,0.00013698,2]
[399229265,1766189441829,-500.0,0.00013698,2]
[399229267,1766189441839,-500.0,0.00013698,2]
[399229269,1766189441848,-311.27445849,0.00013698,2]
[399229271,1766189441859,-500.0,0.00013698,2]
[399229273,1766189441868,-500.0,0.00013698,2]
[399229275,1766189441877,-500.0,0.00013698,2]
[399229277,1766189441887,-500.0,0.00013698,2]
[399229279,1766189441896,-500.0,0.00013698,2]
[399229281,1766189441905,-538.49728486,0.00013698,2]
[399229283,1766189441914,-500.0,0.00013698,2]
[399229285,1766189441924,-500.0,0.00013698,2]
[399229288,1766189441933,-500.0,0.00013698,2]
[399229290,1766189441942,-500.0,0.00013698,2]
[399229292,1766189441952,-500.0,0.00013698,2]
[399229294,1766189441961,-500.0,0.00013698,2]
[399229296,1766189441971,-500.0,0.00013698,2]
[399229298,1766189441981,-500.0,0.00013698,2]
[399229300,1766189441990,-500.0,0.00013698,2]
[399229302,1766189442000,-500.0,0.00013698,2]
[399229304,1766189442010,-500.0,0.00013698,2]
[399229306,1766189442021,-500.0,0.00013698,2]
[399229308,1766189442031,-500.0,0.00013698,2]
[399229310,1766189442041,-500.0,0.00013698,2]
[399229312,1766189442051,-500.0,0.00013698,2]
[399229314,1766189442060,-500.0,0.00013698,2]
[399229316,1766189442069,-527.72795977,0.00013698,2]
[399229317,1766189442079,-500.0,0.00013698,2]
[399229320,1766189442089,-500.0,0.00013698,2]
[399229322,1766189442099,-500.0,0.00013698,2]
[399229324,1766189442108,-500.0,0.00013698,2]
[399229326,1766189442118,-500.0,0.00013698,2]
[399229328,1766189442128,-2193.63,0.00013752,2]
[399229330,1766189442138,-207.28730034,0.00013773,2]
[399229332,1766189442147,-500.0,0.00013773,2]
[399229334,1766189442156,-500.0,0.00013773,2]
[399229336,1766189442166,-500.0,0.00013773,2]
[399229338,1766189442175,-571.76647118,0.00013773,2]
[399229340,1766189442184,-594.24401779,0.00013773,2]
[399229342,1766189442193,-500.0,0.00013773,2]
[399229344,1766189442203,-500.0,0.00013773,2]
[399229346,1766189442212,-500.0,0.00013773,2]
[399229348,1766189442222,-500.0,0.00013773,2]
[399229350,1766189442231,-500.31060552,0.00013773,2]
[399229352,1766189442240,-500.0,0.00013773,2]
[399229354,1766189442250,-500.0,0.00013773,2]
[399229356,1766189442260,-500.0,0.00013773,2]
[399229358,1766189442269,-562.4542945,0.00013773,2]
[399229360,1766189442278,-201.61510008,0.00013773,2]
[399229362,1766189442288,-172.58072295,0.00013773,2]
[399229364,1766189442297,-500.0,0.00013773,2]
[399229366,1766189442307,-500.79935878,0.00013773,2]
[399229368,1766189442316,-500.0,0.00013773,2]
[399229370,1766189442326,-500.0,0.00013773,2]
[399229372,1766189442337,-500.0,0.00013773,2]
[399229374,1766189442347,-500.5536388,0.00013773,2]
[399229376,1766189442357,-216.23511267,0.00013773,2]
[399229378,1766189442367,-633.49897855,0.00013773,2]
[399229380,1766189442379,-500.0,0.00013773,2]
[399229382,1766189442389,-515.76062237,0.00013773,2]
[399229383,1766189442398,-500.44087432,0.00013773,2]
[399229384,1766189442407,-500.0,0.00013773,2]
[399229385,1766189442416,-500.0,0.00013773,2]
[399229386,1766189442425,-500.0,0.00013773,2]
[399229387,1766189442435,-500.0,0.00013773,2]
[399229388,1766189442444,-313.9,0.00013814,2]
[399229389,1766189442453,-28457.3305674,0.00013815,2]
[399229391,1766189442462,-29590.053554,0.00013832,2]
[399229394,1766189442471,-500.0,0.00013837,2]
[399229396,1766189442481,-500.0,0.00013837,2]
[399229398,1766189442490,-500.0,0.00013837,2]
[399229400,1766189442499,-645.61981182,0.00013837,2]
[399229402,1766189442509,-500.0,0.00013837,2]
[399229403,1766189442518,-500.0,0.00013837,2]
[399229405,1766189442527,-500.0,0.00013837,2]
[399229407,1766189442536,-500.0,0.00013837,2]
[399229409,1766189442545,-500.0,0.00013947,2]
[399229411,1766189442555,-2193.63,0.00014025,2]
[399229413,1766189442564,-200.0,0.00014026,2]
[399229415,1766189442573,-500.0,0.00014026,2]
[399229417,1766189442583,-200.0,0.00014026,2]
[399229419,1766189442592,-166.66,0.00014049,2]
[399229421,1766189442602,-500.0,0.00014221,2]
[399229423,1766189442611,-2193.63,0.00014299,2]
[399229424,1766189442620,-1000.0,0.00014321,2]
[399229425,1766189442630,-1000.0,0.00014321,2]
[399229426,1766189442641,-500.0,0.00014321,2]
[399229427,1766189442651,-1002.16839762,0.00014321,2]
[399229428,1766189442660,-500.82958274,0.00014321,2]
[399229429,1766189442669,-1000.0,0.00014321,2]
[399229430,1766189442678,-502.63330469,0.00014321,2]
[399229431,1766189442688,-1000.0,0.00014321,2]
[399229432,1766189442700,-500.0,0.00014321,2]
[399229433,1766189442711,-1000.0,0.00014321,2]
[399229434,1766189442724,-500.0,0.00014321,2]
[399229435,1766189442735,-500.0,0.00014321,2]
[399229436,1766189442747,-1002.50584832,0.00014321,2]
[399229437,1766189442759,-1000.0,0.00014321,2]
[399229438,1766189442768,-1000.0,0.00014321,2]
[399229439,1766189442779,-834.11795043,0.00014321,2]
[399229440,1766189442789,-1000.71124086,0.00014321,2]
[399229441,1766189442800,-1000.0,0.00014321,2]
[399229442,1766189442809,-28457.3305674,0.00014329,2]
[399229443,1766189443055,-29590.053554,0.00014343,2]
[399229444,1766189443065,-166.66,0.00014459,2]
[399229445,1766189443075,-169.44,0.00014459,2]
[399229446,1766189443084,-313.9,0.00014471,2]
[399229447,1766189443094,-500.0,0.00014495,2]
[399229448,1766189443103,-2193.63,0.00014573,2]
[399229450,1766189443112,-200.0,0.00014574,2]
[399229451,1766189443122,-500.0,0.00014574,2]
[399229453,1766189443131,-200.0,0.00014574,2]
[399229454,1766189443140,-433.0,0.00014584,2]
[399229455,1766189443150,-579.52753362,0.00014692,2]
[399229456,1766189443159,-500.0,0.00014759,2]
[399229457,1766189443168,-500.0,0.00014769,2]
[399229458,1766189443178,-316.0,0.0001478,2]
[399229459,1766189443187,-587.0,0.0001478,2]
[399229460,1766189443199,-587.0,0.0001478,2]
[399229461,1766189443208,-28457.3305674,0.00014843,2]
[399229462,1766189443218,-2193.63,0.00014847,2]
[399229463,1766189443228,-2351.0,0.00014848,2]
[399229464,1766189443237,-29590.053554,0.00014855,2]
[399229465,1766189443247,-1500.0,0.00014868,2]
[399229466,1766189443257,-1500.0,0.00014868,2]
[399229468,1766189443266,-1500.0,0.00014868,2]
[399229469,1766189443276,-1500.0,0.00014868,2]
[399229470,1766189443286,-184.93187764,0.00014868,2]
[399229471,1766189443295,-500.0,0.00015043,2]
[399229475,1766189443305,-1600.0,0.00015062,2]
[399229478,1766189443314,-207.4,0.00015121,2]
[399229481,1766189443324,-2193.63,0.00015121,2]
[399229482,1766189443333,-200.0,0.00015122,2]
[399229486,1766189443343,-500.0,0.00015122,2]
[399229489,1766189443352,-200.0,0.00015122,2]
[399229492,1766189443361,-313.9,0.00015129,2]
[399229494,1766189443370,-500.0,0.00015149,2]
[399229496,1766189443379,-500.0,0.00015149,2]
[399229497,1766189443388,-500.0,0.00015149,2]
[399229498,1766189443399,-500.0,0.00015229,2]
[399229499,1766189443410,-500.0,0.00015229,2]
[399229500,1766189443419,-500.0,0.00015229,2]
[399229501,1766189443432,-500.0,0.00015229,2]
[399229502,1766189443442,-500.0,0.00015229,2]
[399229503,1766189443451,-500.0,0.00015229,2]
[399229504,1766189443462,-500.0,0.00015229,2]
[399229505,1766189443472,-500.0,0.00015229,2]
[399229506,1766189443482,-205.80377761,0.00015229,2]
[399229507,1766189443492,-265.09162902,0.00015249,2]
[399229508,1766189443501,-150.0,0.00015288,2]
[399229509,1766189443510,-150.0,0.00015288,2]
[399229510,1766189443519,-150.0,0.00015288,2]
[399229511,1766189443529,-150.0,0.00015288,2]
[399229512,1766189443538,-150.0,0.00015288,2]
[399229513,1766189443547,-150.0,0.00015288,2]
[399229514,1766189443556,-150.0,0.00015288,2]
[399229515,1766189443563,-150.0,0.00015288,2]
[399229516,1766189443572,-150.0,0.00015288,2]
[399229517,1766189443584,-150.0,0.00015288,2]
[399229518,1766189443594,-151.0803606,0.00015288,2]
[399229519,1766189443604,-150.0,0.00015288,2]
[399229520,1766189443613,-150.0,0.00015288,2]
[399229521,1766189443623,-187.30672569,0.00015316,2]
[399229522,1766189443632,-500.0,0.00015317,2]
[399229523,1766189443641,-28457.3305674,0.00015357,2]
[399229524,1766189443652,-29590.053554,0.00015366,2]
[399229525,1766189443662,-2193.63,0.00015395,2]
[399229526,1766189443671,-2000.0,0.00015416,2]
[399229527,1766189443681,-500.0,0.00015416,2]
[399229528,1766189443690,-2000.0,0.00015416,2]
[399229529,1766189443699,-579.52753362,0.00015494,2]
[399229530,1766189443709,-10222.76,0.0001559,2]
[399229531,1766189443722,-150.0,0.00015627,2]
[399229532,1766189443731,-187.30672565,0.00015633,2]
[399229533,1766189443741,-2193.63,0.00015669,2]
[399229534,1766189443750,-200.0,0.0001567,2]
[399229535,1766189443759,-500.0,0.0001567,2]
[399229536,1766189443768,-200.0,0.0001567,2]
[399229537,1766189443777,-500.0,0.00015698,2]
[399229538,1766189443786,-500.0,0.00015698,2]
[399229539,1766189443796,-535.4,0.00015698,2]
[399229540,1766189443805,-500.0,0.00015698,2]
[399229541,1766189443815,-500.0,0.00015698,2]
[399229542,1766189443824,-313.9,0.00015787,2]
[399229543,1766189443834,-28457.3305674,0.00015872,2]
[399229544,1766189443843,-736.0,0.00015875,2]
[399229545,1766189443852,-29590.053554,0.00015877,2]
[399229546,1766189443861,-2193.63,0.00015943,2]
[399229547,1766189443871,-187.30672565,0.0001595,2]
[399229548,1766189443880,-2169.28743146,0.00015964,2]
[399229549,1766189443889,-2500.0,0.00015964,2]
[399229550,1766189443899,-150.0,0.00015967,2]
[399229551,1766189443908,-250.0,0.00016214,2]
[399229552,1766189443917,-2193.63,0.00016217,2]
[399229553,1766189443926,-200.0,0.00016218,2]
[399229554,1766189443935,-500.0,0.00016218,2]
[399229555,1766189443944,-200.0,0.00016218,2]
[399229556,1766189443954,-823.0,0.00016221,2]
[399229557,1766189443963,-823.0,0.00016221,2]
[399229558,1766189443973,-187.30672565,0.00016266,2]
[399229559,1766189443982,-579.52753362,0.00016296,2]
[399229560,1766189443992,-500.0,0.000163,2]
[399229561,1766189444001,-500.0,0.000163,2]
[399229562,1766189444010,-162.2031971,0.000163,2]
[399229563,1766189444020,-500.0,0.000163,2]
[399229564,1766189444029,-555.70530345,0.000163,2]
[399229565,1766189444039,-500.0,0.000163,2]
[399229566,1766189444048,-500.0,0.000163,2]
[399229567,1766189444058,-333.35137801,0.000163,2]
[399229568,1766189444067,-500.0,0.000163,2]
[399229569,1766189444077,-500.0,0.000163,2]
[399229570,1766189444086,-500.0,0.000163,2]
[399229571,1766189444096,-500.0,0.000163,2]
[399229572,1766189444105,-500.0,0.000163,2]
[399229573,1766189444115,-500.0,0.000163,2]
[399229574,1766189444124,-500.0,0.000163,2]
[399229575,1766189444134,-500.0,0.000163,2]
[399229576,1766189444144,-500.0,0.000163,2]
[399229577,1766189444154,-500.0,0.000163,2]
[399229578,1766189444163,-500.0,0.000163,2]
[399229579,1766189444180,-500.0,0.000163,2]
[399229580,1766189444192,-330.58452065,0.000163,2]
[399229581,1766189444202,-500.0,0.000163,2]
[399229582,1766189444212,-162.31867458,0.000163,2]
[399229583,1766189444222,-500.0,0.000163,2]
[399229584,1766189444232,-500.0,0.000163,2]
[399229585,1766189444242,-518.59682921,0.000163,2]
[399229586,1766189444252,-500.0,0.000163,2]
[399229587,1766189444263,-161.98624356,0.000163,2]
[399229588,1766189444272,-570.06161909,0.000163,2]
[399229589,1766189444283,-167.90874605,0.000163,2]
[399229590,1766189444292,-500.0,0.000163,2]
[399229591,1766189444302,-500.0,0.000163,2]
[399229592,1766189444311,-500.0,0.000163,2]
[399229593,1766189444321,-500.0,0.000163,2]
[399229594,1766189444331,-500.0,0.000163,2]
[399229595,1766189444340,-426.23716195,0.000163,2]
[399229596,1766189444350,-500.0,0.000163,2]
[399229597,1766189444359,-177.09914604,0.000163,2]
[399229598,1766189444369,-500.0,0.000163,2]
[399229599,1766189444378,-500.0,0.000163,2]
[399229600,1766189444387,-500.0,0.000163,2]
[399229601,1766189444396,-500.0,0.000163,2]
[399229602,1766189444406,-522.8425268,0.000163,2]
[399229603,1766189444415,-500.0,0.000163,2]
[399229604,1766189444424,-542.76869497,0.000163,2]
[399229605,1766189444434,-500.0,0.000163,2]
[399229606,1766189444444,-500.0,0.000163,2]
[399229607,1766189444453,-500.0,0.000163,2]
[399229608,1766189444463,-220.19602395,0.000163,2]
[399229609,1766189444472,-500.0,0.000163,2]
[399229610,1766189444482,-500.0,0.000163,2]
[399229611,1766189444491,-168.51399609,0.000163,2]
[399229612,1766189444501,-159.38113673,0.000163,2]
[399229613,1766189444511,-500.0,0.000163,2]
[399229614,1766189444520,-161.02777074,0.000163,2]
[399229615,1766189444530,-500.0,0.000163,2]
[399229616,1766189444543,-500.0,0.000163,2]
[399229617,1766189444553,-500.0,0.000163,2]
[399229618,1766189444564,-500.0,0.000163,2]
[399229619,1766189444573,-451.84220836,0.000163,2]
[399229620,1766189444584,-500.0,0.000163,2]
[399229621,1766189444594,-589.83150472,0.000163,2]
[399229622,1766189444604,-500.0,0.000163,2]
[399229623,1766189444615,-334.43808915,0.000163,2]
[399229624,1766189444626,-500.0,0.000163,2]
[399229625,1766189444637,-500.0,0.000163,2]
[399229626,1766189444647,-500.0,0.000163,2]
[399229627,1766189444658,-516.25277369,0.000163,2]
[399229628,1766189444668,-500.0,0.000163,2]
[399229629,1766189444679,-500.0,0.000163,2]
[399229630,1766189444689,-344.53874952,0.000163,2]
[399229631,1766189444700,-500.0,0.000163,2]
[399229632,1766189444710,-500.0,0.000163,2]
[399229633,1766189444725,-500.0,0.000163,2]
[399229634,1766189444738,-468.39914769,0.000163,2]
[399229635,1766189444748,-500.0,0.000163,2]
[399229636,1766189444759,-500.0,0.000163,2]
[399229637,1766189444770,-500.0,0.000163,2]
[399229638,1766189444780,-500.0,0.000163,2]
[399229639,1766189444792,-500.0,0.000163,2]
[399229640,1766189444802,-576.83817064,0.000163,2]
[399229641,1766189444811,-166.85768029,0.000163,2]
[399229642,1766189444821,-500.0,0.000163,2]
[399229643,1766189444831,-529.81919034,0.000163,2]
[399229644,1766189444841,-500.0,0.000163,2]
[399229645,1766189444851,-500.0,0.000163,2]
[399229646,1766189444860,-150.0,0.00016307,2]
[399229647,1766189444871,-3292.0,0.00016333,2]
[399229648,1766189444880,-500.0,0.00016356,2]
[399229649,1766189444890,-28457.3305674,0.00016386,2]
[399229650,1766189444900,-29590.053554,0.00016389,2]
[399229651,1766189444911,-228.0,0.000164,2]
[399229652,1766189444921,-319.0,0.000164,2]
[399229653,1766189444935,-182.0,0.000164,2]
[399229654,1766189444946,-183.36639169,0.000164,2]
[399229655,1766189444957,-500.0,0.00016438,2]
[399229656,1766189444967,-500.0,0.00016438,2]
[399229657,1766189444977,-500.0,0.00016438,2]
[399229658,1766189444987,-500.0,0.00016438,2]
[399229659,1766189444996,-500.0,0.00016438,2]
[399229660,1766189445006,-500.0,0.00016438,2]
[399229661,1766189445016,-500.0,0.00016438,2]
[399229662,1766189445027,-500.0,0.00016438,2]
[399229663,1766189445037,-3000.0,0.00016438,2]
[399229664,1766189445047,-225.81,0.00016438,2]
[399229665,1766189445056,-800.0,0.00016438,2]
[399229666,1766189445066,-9055.23,0.00016438,2]
[399229667,1766189445077,-164.4,0.0001644,2]
[399229668,1766189445087,-313.9,0.00016445,2]
[399229669,1766189445097,-500.0,0.00016462,2]
[399229670,1766189445106,-2193.63,0.00016491,2]
[399229671,1766189445120,-1677.73185168,0.00016512,2]
[399229672,1766189445130,-1600.0,0.00016568,2]
[399229673,1766189445140,-187.30672565,0.00016583,2]
[399229674,1766189445150,-150.0,0.00016647,2]
[399229675,1766189445160,-500.0,0.00016684,2]
[399229676,1766189445170,-500.0,0.00016684,2]
[399229677,1766189445179,-500.0,0.00016684,2]
[399229678,1766189445189,-500.0,0.00016684,2]
[399229679,1766189445199,-500.0,0.00016684,2]
[399229680,1766189445208,-500.0,0.00016684,2]
[399229681,1766189445219,-463.29767269,0.00016684,2]
[399229682,1766189445229,-500.0,0.00016684,2]
[399229683,1766189445239,-500.0,0.00016684,2]
[399229684,1766189445249,-500.0,0.00016684,2]
[399229685,1766189445259,-508.5401249,0.00016684,2]
[399229686,1766189445270,-500.0,0.00016684,2]
[399229687,1766189445279,-500.0,0.00016684,2]
[399229688,1766189445289,-500.0,0.00016684,2]
[399229689,1766189445298,-527.09720834,0.00016684,2]
[399229690,1766189445307,-500.0,0.00016684,2]
[399229691,1766189445321,-218.06651847,0.00016684,2]
[399229692,1766189445330,-500.0,0.00016684,2]
[399229693,1766189445340,-500.0,0.00016684,2]
[399229694,1766189445349,-500.0,0.00016684,2]
[399229695,1766189445359,-14650.2720129,0.00016685,2]
[399229696,1766189445368,-445088.5542502,0.00016685,2]
[399229697,1766189445378,-2193.63,0.00016765,2]
[399229698,1766189445387,-200.0,0.00016766,2]
[399229699,1766189445396,-500.0,0.00016766,2]
[399229700,1766189445406,-200.0,0.00016766,2]
[399229701,1766189445415,-221.05854502,0.00016848,2]
[399229702,1766189445425,-178.93750453,0.00016848,2]
[399229703,1766189445434,-1000.0,0.00016848,2]
[399229704,1766189445561,-1000.0,0.00016848,2]
[399229705,1766189445570,-500.0,0.00016848,2]
[399229706,1766189445580,-1000.0,0.00016848,2]
[399229707,1766189445589,-1000.0,0.00016848,2]
[399229708,1766189445598,-1000.0,0.00016848,2]
[399229709,1766189445607,-1000.0,0.00016848,2]
[399229710,1766189445616,-1000.0,0.00016848,2]
[399229711,1766189445626,-1000.0,0.00016848,2]
[399229712,1766189445634,-1000.0,0.00016848,2]
[399229713,1766189445644,-1000.0,0.00016848,2]
[399229714,1766189445653,-1000.0,0.00016848,2]
[399229715,1766189445662,-1000.0,0.00016848,2]
[399229716,1766189445671,-1000.0,0.00016848,2]
[399229717,1766189445683,-1000.0,0.00016848,2]
[399229718,1766189445692,-1000.0,0.00016848,2]
[399229719,1766189445701,-1000.0,0.00016848,2]
[399229720,1766189445710,-1000.0,0.00016848,2]
[399229721,1766189445724,-1000.0,0.00016848,2]
[399229722,1766189445733,-1000.0,0.00016848,2]
[399229723,1766189445742,-1000.0,0.00016848,2]
[399229724,1766189445752,-1000.0,0.00016848,2]
[399229725,1766189445761,-500.0,0.00016848,2]
[399229726,1766189445771,-998.08794248,0.00016848,2]
[399229727,1766189445780,-1000.0,0.00016848,2]
[399229728,1766189445788,-1000.0,0.00016848,2]
[399229729,1766189445798,-1000.0,0.00016848,2]
[399229730,1766189445807,-1000.0,0.00016848,2]
[399229731,1766189445817,-1000.0,0.00016848,2]
[399229732,1766189445826,-1000.0,0.00016848,2]
[399229733,1766189445836,-1000.0,0.00016848,2]
[399229734,1766189445845,-1000.97583461,0.00016848,2]
[399229735,1766189445855,-1000.0,0.00016848,2]
[399229736,1766189445863,-1000.0,0.00016848,2]
[399229737,1766189445880,-1000.0,0.00016848,2]
[399229738,1766189445891,-1000.0,0.00016848,2]
[399229739,1766189445900,-1004.05376644,0.00016848,2]
[399229740,1766189445909,-1000.0,0.00016848,2]
[399229741,1766189445918,-500.0,0.00016848,2]
[399229742,1766189445928,-500.0,0.00016848,2]
[399229743,1766189445938,-223.8455542,0.00016864,2]
[399229744,1766189445947,-33486.8341,0.000169,2]
[399229745,1766189445956,-6771.0366,0.000169,2]
[399229746,1766189445965,-10000.0,0.000169,2]
[399229747,1766189445974,-152.96190911,0.000169,2]
[399229748,1766189445984,-265.09162902,0.000169,2]
[399229749,1766189445995,-28457.3305674,0.000169,2]
[399229750,1766189446004,-337.21037038,0.000169,2]
[399229751,1766189446014,-29590.053554,0.000169,2]
[399229752,1766189446023,-168.57023541,0.000169,2]
[399229753,1766189446033,-187.30672565,0.000169,2]
[399229754,1766189446042,-163.36030713,0.00016973,2]
[399229755,1766189446051,-500.0,0.0001698,2]
[399229756,1766189446061,-500.0,0.00016981,2]
[399229757,1766189446070,-334.65492726,0.00016981,2]
[399229758,1766189446079,-150.0,0.00016986,2]
[399229759,1766189446088,-82946.09,0.00016986,2]
[399229760,1766189446097,-1299.94390809,0.0001699,2]
[399229761,1766189446107,-1299.94390809,0.0001699,2]
[399229762,1766189446116,-500.0,0.00016998,2]
[399229763,1766189446126,-1139.7502052,0.00016999,5]
[399229764,1766189446135,-1139.7502052,0.00016999,5]
[399229766,1766189446144,-1139.75020521,0.00016999,5]
[399229768,1766189446154,-500.0,0.00016999,2]
[399229770,1766189446163,-500.0,0.00016999,2]
[399229771,1766189446173,-500.0,0.00016999,2]
[399229772,1766189446183,-500.0,0.00016999,2]
[399229774,1766189446192,-500.0,0.00016999,2]
[399229775,1766189446201,-500.0,0.00016999,2]
[399229776,1766189446210,-500.0,0.00016999,2]
[399229777,1766189446221,-500.0,0.00016999,2]
[399229778,1766189446231,-500.0,0.00016999,2]
[399229779,1766189446240,-500.0,0.00016999,2]
[399229780,1766189446250,-500.0,0.00016999,2]
[399229781,1766189446265,-500.0,0.00016999,2]
[399229782,1766189446275,-496.63409221,0.00016999,2]
[399229783,1766189446284,-500.0,0.00016999,2]
[399229784,1766189446295,-500.0,0.00016999,2]
[399229785,1766189446305,-500.0,0.00016999,2]
[399229786,1766189446315,-500.0,0.00016999,2]
[399229787,1766189446325,-500.0,0.00016999,2]
[399229788,1766189446334,-500.0,0.00016999,2]
[399229789,1766189446344,-500.0,0.00016999,2]
[399229790,1766189446354,-500.0,0.00016999,2]
[399229791,1766189446364,-500.0,0.00016999,2]
[399229792,1766189446374,-500.0,0.00016999,2]
[399229793,1766189446385,-500.0,0.00016999,2]
[399229794,1766189446394,-500.0,0.00016999,2]
[399229795,1766189446403,-500.0,0.00016999,2]
[399229796,1766189446413,-500.0,0.00016999,2]
[399229797,1766189446423,-242.46,0.00016999,2]
[399229798,1766189446435,-500.0,0.00016999,2]
[399229799,1766189446444,-500.0,0.00016999,2]
[399229800,1766189446454,-500.0,0.00016999,2]
[399229801,1766189446465,-500.0,0.00016999,2]
[399229802,1766189446475,-500.0,0.00016999,2]
[399229803,1766189446484,-500.0,0.00016999,2]
[399229804,1766189446493,-500.0,0.00016999,2]
[399229805,1766189446503,-500.0,0.00016999,2]
[399229806,1766189446512,-500.0,0.00016999,2]
[399229807,1766189446522,-500.0,0.00016999,2]
[399229808,1766189446532,-500.0,0.00016999,2]
[399229809,1766189446541,-500.0,0.00016999,2]
[399229810,1766189446551,-500.0,0.00016999,2]
[399229811,1766189446560,-500.0,0.00016999,2]
[399229812,1766189446568,-500.0,0.00016999,2]
[399229813,1766189446578,-448.37833053,0.00016999,2]
[399229814,1766189446587,-500.0,0.00016999,2]
[399229815,1766189446596,-527.06873732,0.00016999,2]
[399229816,1766189446605,-300.0,0.00016999,2]
[399229817,1766189446615,-500.0,0.00016999,2]
[399229818,1766189446624,-500.0,0.00016999,2]
[399229819,1766189446634,-500.0,0.00016999,2]